lending/lending_fUSD_20251114
["ID","MTS","AMOUNT","RATE_DAILY","PERIOD"]
[393933357,1763106633421,-177.99,0.00017122,2]
[393933359,1763106633430,-2084.49171166,0.0001714,2]
[393933361,1763106633439,-230.0,0.00017143,2]
[393933363,1763106633448,-238.36,0.00017192,2]
[393933365,1763106633459,-158.47872063,0.00017199,2]
[393933367,1763106633471,-168.72535846,0.00017199,2]
[393933369,1763106633481,-636.75769494,0.00017199,2]
[393933371,1763106633490,-230.0,0.00017199,2]
[393933373,1763106633504,-1600.0,0.000172,6]
[393933375,1763106633515,-204.21,0.00017235,2]
[393933377,1763106633525,-3378.6319207,0.00017253,2]
[393933379,1763106633534,-2084.49171166,0.00017267,2]
[393933381,1763106633543,-2500.0,0.000173,6]
[393933383,1763106633552,-2084.49171166,0.00017393,2]
[393933385,1763106633561,-3300.0,0.000174,6]
[393933387,1763106633570,-3378.6319207,0.00017415,2]
[393933389,1763106633579,-166.66,0.00017431,2]
[393933392,1763106633589,-189.412,0.00017466,2]
[393933394,1763106633599,-1978.192,0.00017466,2]
[393933396,1763106633608,-151.0,0.00017497,2]
[393933398,1763106633617,-151.0,0.00017498,2]
[393933400,1763106633627,-151.0,0.00017499,2]
[393933402,1763106633636,-4100.0,0.000175,6]
[393933404,1763106633645,-151.0,0.000175,2]
[393933405,1763106633655,-2084.49171166,0.0001752,2]
[393933407,1763106633664,-500.0,0.00017521,2]
[393933408,1763106633673,-230.0,0.00017551,2]
[393933410,1763106633682,-230.0,0.00017561,2]
[393933412,1763106633691,-3378.6319207,0.00017576,2]
[393933413,1763106633701,-800.0,0.000176,6]
[393933414,1763106633710,-230.0,0.00017606,2]
[393933415,1763106633719,-2084.49171166,0.00017647,2]
[393933416,1763106633728,-230.0,0.00017663,2]
[393933417,1763106633737,-230.0,0.00017695,2]
[393933418,1763106633748,-800.0,0.000177,6]
[393933419,1763106633758,-3378.6319207,0.00017738,2]
[393933420,1763106633767,-2084.49171166,0.00017773,2]
[393933421,1763106633777,-300.0,0.0001778,2]
[393933422,1763106633786,-800.0,0.000178,6]
[393933423,1763106633795,-230.0,0.00017831,2]
[393933424,1763106633805,-230.0,0.00017841,2]
[393933425,1763106633814,-230.0,0.00017866,2]
[393933426,1763106633823,-230.0,0.00017875,2]
[393933427,1763106633833,-230.0,0.00017876,2]
[393933428,1763106633843,-2167.85886011,0.000179,3]
[393933429,1763106633853,-800.0,0.000179,6]
[393933430,1763106633867,-3378.6319207,0.000179,2]
[393933431,1763106633877,-2084.49171166,0.000179,2]
[393933432,1763106633886,-454.31928583,0.000179,3]
[393933433,1763106633896,-605.791,0.000179,2]
[393933434,1763106633906,-521.34032885,0.000179,2]
[393933435,1763106633916,-229.05824722,0.000179,2]
[393933436,1763106633928,-182.71759108,0.000179,2]
[393933437,1763106633938,-4703.6041156,0.00017924,2]
[393933439,1763106638945,-0.03178501,0.00017501,2]
[393933440,1763106638957,-150.96821499,0.00017501,2]
[393933441,1763106638969,-5480.26125437,0.000179,2]
[393933442,1763106638979,-2828.77053064,0.00017924,2]
[393933443,1763106638991,-13220.43535376,0.00017924,2]
[393933444,1763106639004,-230.0,0.0001796,2]
[393933445,1763106639014,-202.5373284,0.00017972,2]
[393933446,1763106639024,-500.0,0.00017972,2]
[393933447,1763106639033,-1218.0,0.00017972,2]
[393933448,1763106639043,-150.0,0.00017972,2]
[393933449,1763106639053,-500.0,0.00017972,2]
[393933450,1763106639062,-500.0,0.00017972,2]
[393933452,1763106639071,-272.73712267,0.00017972,2]
[393933454,1763106639082,-150.0,0.00017972,2]
[393933456,1763106639091,-150.0,0.00017972,2]
[393933459,1763106639101,-150.0,0.00017972,2]
[393933462,1763106639111,-500.0,0.00017972,2]
[393933464,1763106639120,-500.0,0.00017972,2]
[393933466,1763106639130,-150.0,0.00017972,2]
[393933468,1763106639139,-163.12904844,0.00017972,2]
[393933470,1763106639148,-500.0,0.00017972,2]
[393933472,1763106639157,-500.0,0.00017972,2]
[393933474,1763106639166,-500.0,0.00017972,2]
[393933476,1763106639175,-150.0,0.00017972,2]
[393933478,1763106639184,-500.0,0.00017972,2]
[393933480,1763106639193,-150.0,0.00017972,2]
[393933482,1763106639203,-500.0,0.00017972,2]
[393933484,1763106639212,-500.0,0.00017972,2]
[393933485,1763106639221,-152.607527,0.00017972,2]
[393933487,1763106639231,-153.012916,0.00017972,2]
[393933489,1763106639239,-156.711489,0.00017972,2]
[393933490,1763106639250,-500.0,0.00017972,2]
[393933492,1763106639259,-500.0,0.00017972,2]
[393933495,1763106639269,-428.0,0.00017972,2]
[393933497,1763106639278,-322.44160419,0.00017973,2]
[393933499,1763106639288,-166.66,0.00017988,2]
[393933501,1763106639297,-200.0,0.00017989,2]
[393933503,1763106639306,-1000.0,0.00017999,2]
[393933505,1763106639315,-1647.08014488,0.00017999,5]
[393933506,1763106639324,-300.0,0.00017999,2]
[393933508,1763106639333,-151.0,0.00017999,2]
[393933510,1763106639342,-151.0,0.00017999,2]
[393933512,1763106639352,-151.0,0.00017999,2]
[393933514,1763106639361,-151.0,0.00017999,2]
[393933516,1763106639370,-151.0,0.00017999,2]
[393933517,1763106639379,-500.0,0.00017999,2]
[393933518,1763106639389,-1218.0,0.00017999,2]
[393933519,1763106639398,-184.90884767,0.00017999,2]
[393933520,1763106639408,-580.69860132,0.00017999,2]
[393933521,1763106639417,-500.0,0.00017999,2]
[393933522,1763106639427,-150.0,0.00017999,2]
[393933523,1763106639436,-150.0,0.00017999,2]
[393933524,1763106639446,-161.57480564,0.00017999,2]
[393933525,1763106639456,-500.0,0.00017999,2]
[393933526,1763106639465,-500.0,0.00017999,2]
[393933527,1763106639475,-150.0,0.00017999,2]
[393933528,1763106639485,-500.0,0.00017999,2]
[393933529,1763106639494,-500.0,0.00017999,2]
[393933530,1763106639505,-500.0,0.00017999,2]
[393933531,1763106639515,-500.0,0.00017999,2]
[393933532,1763106639524,-500.0,0.00017999,2]
[393933533,1763106639533,-500.0,0.00017999,2]
[393933534,1763106639543,-500.0,0.00017999,2]
[393933535,1763106639552,-500.0,0.00017999,2]
[393933536,1763106639562,-428.0,0.00017999,2]
[393933537,1763106639571,-5088.0,0.00018,2]
[393933538,1763106639581,-86215.61314898,0.00018,2]
[393933539,1763106639593,-487.85106118,0.00018,2]
[393933577,1763106640501,-212.49553947,0.00016931,2]
[393933579,1763106640511,-362.10442632,0.00018,2]
[393933582,1763106640523,-485.85,0.00018,2]
[393933692,1763106641315,-1.7e-07,0.00018,2]
[393933925,1763106643903,-35595.04881,0.00018,2]
[393933969,1763106669862,225.00544772,0.000165,2]
[393933970,1763106731767,500.0,0.00016544,2]
[393933971,1763106778366,9275.00455228,0.00016444,2]
[393933972,1763106778394,10000.01,0.00016444,2]
[393933973,1763106778422,10000.01,0.00016444,2]
[393933974,1763106778450,10000.01,0.00016444,2]
[393933975,1763106778478,10000.01,0.00016444,2]
[393933976,1763106778506,10000.01,0.00016444,2]
[393933977,1763106778535,10000.01,0.00016444,2]
[393933978,1763106778564,10000.01,0.00016444,2]
[393933979,1763106778593,10000.01,0.00016444,2]
[393933980,1763106778621,10000.01,0.00016444,2]
[393933981,1763106787956,150.0,0.00016976,120]
[393933982,1763106803385,229.8903802,0.00016444,2]
[393933983,1763106803581,307.34619407,0.00016444,2]
[393933984,1763106803720,-1727.80590343,0.00016444,2]
[393933985,1763106805644,-159.79474072,0.00016444,2]
[393933986,1763106809143,-285.3360429,0.00016444,2]
[393933987,1763106810968,-327.92942768,0.00016444,2]
[393933988,1763106813430,-192.51023054,0.00016444,2]
[393933989,1763106817301,-500.0,0.00016444,2]
[393933990,1763106822074,-275.04128326,0.00016444,2]
[393933991,1763106823691,-290.981863,0.00016444,2]
[393933992,1763106825846,-189.798137,0.00016444,2]
[393933993,1763106831065,-381.1595594,0.00016444,2]
[393933994,1763106832869,-325.4636516,0.00016444,2]
[393933995,1763106838960,-488.33193912,0.00016444,2]
[393933996,1763106840964,-237.24484988,0.00016444,2]
[393933997,1763106841541,300.0,0.00016443,2]
[393933998,1763106842172,550.0,0.00016443,2]
[393933999,1763106848018,2460.88,8.517e-05,2]
[393934000,1763106848212,2460.88,8.965e-05,2]
[393934001,1763106848441,2460.88,9.413e-05,2]
[393934002,1763106848667,1230.13342573,9.861e-05,2]
[393934003,1763106848696,1230.74657427,9.861e-05,2]
[393934004,1763106848731,-169.54347837,0.00016444,2]
[393934005,1763106848877,2460.88,0.00010309,2]
[393934006,1763106849084,2460.88,0.00010758,2]
[393934007,1763106849280,2460.88,0.00011206,2]
[393934008,1763106849485,1386.62342573,0.00011654,2]
[393934009,1763106849511,1074.25657427,0.00011654,2]
[393934010,1763106849682,2460.88,0.00012102,2]
[393934011,1763106849897,2460.88,0.00012551,2]
[393934012,1763106850125,2460.88,0.00012999,2]
[393934013,1763106850339,1543.11342573,0.00013447,2]
[393934014,1763106850364,917.76657427,0.00013447,2]
[393934015,1763106850532,2460.88,0.00013895,2]
[393934016,1763106850754,2460.88,0.00014344,2]
[393934017,1763106851134,2460.88,0.00014792,2]
[393934018,1763106851172,1699.60342573,0.0001524,2]
[393934019,1763106851198,761.27657427,0.0001524,2]
[393934020,1763106851369,2460.88,0.00015688,2]
[393934021,1763106851574,2460.88,0.00016137,2]
[393934022,1763106860576,151.0,0.00016441,2]
[393934023,1763106887110,176.81248374,0.00016443,2]
[393934024,1763106887922,188.96749093,0.00016443,2]
[393934025,1763106888609,500.0,0.00016443,2]
[393934026,1763106889004,500.0,0.00016443,2]
[393934027,1763106890626,500.0,0.00016443,2]
[393934028,1763106890668,500.0,0.00016443,2]
[393934029,1763106890714,500.0,0.00016443,2]
[393934030,1763106890762,500.0,0.00016443,2]
[393934031,1763106890812,500.0,0.00016443,2]
[393934032,1763106890861,300.19345106,0.00016443,2]
[393934033,1763106890896,199.80654894,0.00016443,2]
[393934034,1763106890930,500.0,0.00016443,2]
[393934035,1763106890965,500.0,0.00016443,2]
[393934036,1763106890999,500.0,0.00016443,2]
[393934037,1763106891039,500.0,0.00016443,2]
[393934038,1763106891076,500.0,0.00016443,2]
[393934039,1763106891119,500.0,0.00016443,2]
[393934040,1763106891156,500.0,0.00016443,2]
[393934041,1763106891195,500.0,0.00016443,2]
[393934042,1763106891235,500.0,0.00016443,2]
[393934043,1763106891271,500.0,0.00016443,2]
[393934044,1763106891349,500.0,0.00016443,2]
[393934045,1763106891386,500.0,0.00016443,2]
[393934046,1763106891423,500.0,0.00016443,2]
[393934047,1763106891466,500.0,0.00016443,2]
[393934048,1763106891501,500.0,0.00016443,2]
[393934049,1763106891764,500.0,0.00016443,2]
[393934050,1763106891799,500.0,0.00016443,2]
[393934051,1763106891831,500.0,0.00016443,2]
[393934052,1763106891864,500.0,0.00016443,2]
[393934053,1763106891898,300.20345106,0.00016443,2]
[393934054,1763106891925,199.79654894,0.00016443,2]
[393934055,1763106891958,191.82334034,0.00016443,2]
[393934056,1763106891992,500.0,0.00016443,2]
[393934057,1763106892039,500.0,0.00016443,2]
[393934058,1763106892079,500.0,0.00016443,2]
[393934059,1763106892112,500.0,0.00016443,2]
[393934060,1763106892149,500.0,0.00016443,2]
[393934061,1763106892184,500.0,0.00016443,2]
[393934062,1763106892224,500.0,0.00016443,2]
[393934063,1763106892260,500.0,0.00016443,2]
[393934064,1763106892301,500.0,0.00016443,2]
[393934065,1763106892334,500.0,0.00016443,2]
[393934066,1763106892373,500.0,0.00016443,2]
[393934067,1763106892407,500.0,0.00016443,2]
[393934068,1763106892493,500.0,0.00016443,2]
[393934069,1763106892540,500.0,0.00016443,2]
[393934070,1763106899848,2608.39011072,0.00016344,2]
[393934071,1763106899871,2863.56455121,0.00016344,2]
[393934072,1763106900544,212.8572532,0.00016344,2]
[393934073,1763106901744,500.0,0.00016443,2]
[393934074,1763106901784,500.0,0.00016443,2]
[393934075,1763106901825,500.0,0.00016443,2]
[393934076,1763106901869,500.0,0.00016443,2]
[393934077,1763106901913,500.0,0.00016443,2]
[393934078,1763106901960,500.0,0.00016443,2]
[393934079,1763106902000,500.0,0.00016443,2]
[393934080,1763106902066,500.0,0.00016443,2]
[393934081,1763106902108,500.0,0.00016443,2]
[393934082,1763106902152,500.0,0.00016443,2]
[393934083,1763106902196,500.0,0.00016443,2]
[393934084,1763106902242,500.0,0.00016443,2]
[393934085,1763106902281,500.0,0.00016443,2]
[393934086,1763106902320,423.58819559,0.00016443,2]
[393934087,1763106902346,76.41180441,0.00016443,2]
[393934088,1763106902380,500.0,0.00016443,2]
[393934089,1763106902439,500.0,0.00016443,2]
[393934090,1763106902474,500.0,0.00016443,2]
[393934091,1763106902509,500.0,0.00016443,2]
[393934092,1763106902547,500.0,0.00016443,2]
[393934093,1763106902640,500.0,0.00016443,2]
[393934094,1763106902695,500.0,0.00016443,2]
[393934095,1763106903183,291.82334034,0.00016443,2]
[393934097,1763106954174,2759.0,0.00016438,2]
[393934098,1763106998824,154.84887672,0.00016356,2]
[393934099,1763106999513,-190.4422575,0.00016444,2]
[393934100,1763107002298,-170.37608082,0.00016444,2]
[393934101,1763107004444,-369.19297188,0.00016444,2]
[393934102,1763107007244,-268.89354039,0.00016444,2]
[393934103,1763107008810,-248.44963498,0.00016444,2]
[393934104,1763107010504,-231.10645961,0.00016444,2]
[393934105,1763107023647,500.0,0.00016443,2]
[393934106,1763107023687,500.0,0.00016443,2]
[393934107,1763107023728,500.0,0.00016443,2]
[393934108,1763107023769,500.0,0.00016443,2]
[393934109,1763107023811,500.0,0.00016443,2]
[393934110,1763107023853,500.0,0.00016443,2]
[393934111,1763107023888,217.92597853,0.00016443,2]
[393934112,1763107023919,282.07402147,0.00016443,2]
[393934113,1763107023959,244.57220172,0.00016443,2]
[393934114,1763107065434,1483.74870338,0.00016344,2]
[393934116,1763107103693,-151.03948885,0.00016444,2]
[393934117,1763107106134,-221.9370058,0.00016444,2]
[393934118,1763107119495,-166.66,0.00016444,2]
[393934119,1763107121349,-281.75432382,0.00016444,2]
[393934120,1763107123605,-305.20999545,0.00016444,2]
[393934121,1763107126282,-300.0,0.00016444,2]
[393934122,1763107128644,-341.20572281,0.00016444,2]
[393934123,1763107130877,-300.0,0.00016444,2]
[393934124,1763107132919,-155.5003736,0.00016444,2]
[393934125,1763107135384,-416.04224315,0.00016444,2]
[393934126,1763107138747,-396.27127505,0.00016444,2]
[393934127,1763107142321,-451.13601358,0.00016444,2]
[393934128,1763107144156,-396.97728526,0.00016444,2]
[393934129,1763107145704,-167.70362033,0.00016444,2]
[393934130,1763107164455,-220.44000221,0.00016444,2]
[393934131,1763107165926,-170.73509499,0.00016444,2]
[393934132,1763107168183,-331.0684328,0.00016444,2]
[393934133,1763107170032,-169.24567618,0.00016444,2]
[393934134,1763107172177,-288.91064111,0.00016444,2]
[393934135,1763107174760,-459.50637106,0.00016444,2]
[393934136,1763107176932,-290.74405655,0.00016444,2]
[393934137,1763107178502,-173.41745945,0.00016444,2]
[393934138,1763107180814,186.25009655,0.00016344,2]
[393934139,1763107182196,-528.27782601,0.00016444,2]
[393934140,1763107185251,-366.94052769,0.00016444,2]
[393934141,1763107188281,-242.93031742,0.00016444,2]
[393934142,1763107190580,-151.12427085,0.00016444,2]
[393934143,1763107196091,-210.33303172,0.00016444,2]
[393934144,1763107197906,-440.20252509,0.00016444,2]
[393934145,1763107200112,-402.05463079,0.00016444,2]
[393934146,1763107202855,-366.42155809,0.00016444,2]
[393934147,1763107205101,937.24,0.00016434,2]
[393934148,1763107205581,-308.25801285,0.00016444,2]
[393934149,1763107207127,4694.55,0.00016434,2]
[393934150,1763107207571,-269.87787515,0.00016444,2]
[393934151,1763107208037,200.0,0.00016444,2]
[393934152,1763107213440,-159.85913901,0.00016444,2]
[393934153,1763107216531,-424.22290232,0.00016444,2]
[393934154,1763107241030,445.73038646,0.00016443,2]
[393934155,1763107256342,500.0,0.00016444,2]
[393934156,1763107262809,443.73507614,0.00016444,2]
[393934157,1763107263174,276.89178236,0.00016444,2]
[393934158,1763107263207,151.0,0.00016444,2]
[393934159,1763107269402,154.21773192,0.00016443,2]
[393934160,1763107269427,8453.70260741,0.00016443,2]
[393934161,1763107271599,177.99,0.00013033,2]
[393934162,1763107276929,500.0,0.00016444,2]
[393934163,1763107295367,500.0,0.00016444,2]
[393934164,1763107313664,368.31739259,0.00016444,2]
[393934165,1763107313688,131.68260741,0.00016444,2]
[393934166,1763107319444,1512.1509537,0.00041155,30]
[393934167,1763107319903,151.0,0.00016444,2]
[393934168,1763107319956,999.0,0.00016386,3]
[393934171,1763107340635,500.0,0.00016444,2]
[393934172,1763107355177,500.0,0.00016444,2]
[393934173,1763107357664,7718.32739259,0.00016444,2]
[393934174,1763107357689,10000.01,0.00016444,2]
[393934175,1763107357713,10000.01,0.00016444,2]
[393934176,1763107357737,10000.01,0.00016444,2]
[393934177,1763107357761,10000.01,0.00016444,2]
[393934178,1763107357785,10000.01,0.00016444,2]
[393934179,1763107357808,10000.01,0.00016444,2]
[393934180,1763107357831,10000.01,0.00016444,2]
[393934181,1763107357853,10000.01,0.00016444,2]
[393934182,1763107357876,10000.01,0.00016444,2]
[393934183,1763107375049,-2641.31135673,0.00016444,2]
[393934184,1763107375182,-10000.01,0.00016444,2]
[393934185,1763107375337,-10000.01,0.00016444,2]
[393934186,1763107375463,-10000.01,0.00016444,2]
[393934187,1763107375592,-10000.01,0.00016444,2]
[393934188,1763107375756,-10000.01,0.00016444,2]
[393934189,1763107375892,-3000.89407502,0.00016444,2]
[393934190,1763107375917,-3998.22184996,0.00016444,2]
[393934192,1763107385694,151.0,0.00016444,2]
[393934193,1763107386304,151.0,0.00016444,2]
[393934194,1763107387156,164.76557995,0.00016444,2]
[393934195,1763107390356,-9533.24442005,0.00016444,2]
[393934196,1763107390557,-10000.01,0.00016444,2]
[393934197,1763107390891,-10000.01,0.00016444,2]
[393934198,1763107391015,-10000.01,0.00016444,2]
[393934199,1763107391187,-10000.01,0.00016444,2]
[393934200,1763107391318,-10000.01,0.00016444,2]
[393934201,1763107391517,-10000.01,0.00016444,2]
[393934202,1763107391939,-10000.01,0.00016444,2]
[393934203,1763107391956,-10000.01,0.00016444,2]
[393934204,1763107392043,-10000.01,0.00016444,2]
[393934205,1763107396563,-10000.01,0.00016444,2]
[393934206,1763107409488,770.399917,0.00016362,2]
[393934207,1763107410177,4924.75919571,0.00016344,2]
[393934208,1763107417077,500.0,0.00016443,2]
[393934209,1763107417126,500.0,0.00016443,2]
[393934210,1763107417181,525.83545111,0.00016443,2]
[393934211,1763107419324,-338.1722733,0.00016444,2]
[393934212,1763107422484,-151.0,0.00016444,2]
[393934213,1763107423120,171.6,0.00041155,30]
[393934214,1763107424057,-447.15160276,0.00016444,2]
[393934215,1763107425917,500.0,0.00016444,2]
[393934216,1763107426515,-228.97651632,0.00016444,2]
[393934217,1763107428037,-157.81361727,0.00016444,2]
[393934218,1763107429877,-296.86610541,0.00016444,2]
[393934219,1763107431922,-364.96162129,0.00016444,2]
[393934220,1763107434907,169.53727234,0.00016443,2]
[393934221,1763107441930,500.0,0.00016444,2]
[393934222,1763107444949,1609.47816384,0.00016444,2]
[393934223,1763107444975,3980.59334846,0.00016444,2]
[393934224,1763107446112,1000.0,0.00016344,2]
[393934225,1763107453469,5019.41665154,0.00016348,2]
[393934226,1763107453494,10000.01,0.00016348,2]
[393934227,1763107453519,10000.01,0.00016348,2]
[393934228,1763107453542,10000.01,0.00016348,2]
[393934229,1763107453570,10000.01,0.00016348,2]
[393934230,1763107453594,7247.12334846,0.00016348,2]
[393934233,1763107482842,1027.9417,0.00016344,2]
[393934234,1763107489259,1724.94495154,0.00016344,2]
[393934235,1763107489284,775.05504846,0.00016344,2]
[393934237,1763107511464,2000.0,0.00041155,30]
[393934238,1763107511526,2000.0,0.00041155,30]
[393934239,1763107516919,2309.94977892,0.00016344,2]
[393934240,1763107531689,1286.6060349,0.00041155,30]
[393934241,1763107531747,1781.73412115,0.00041155,30]
[393934242,1763107563544,151.0,0.00016444,2]
[393934243,1763107580767,416.06357797,0.00016443,2]
[393934244,1763107618968,4355.9946722,0.00016444,2]
[393934245,1763107637164,10768.68,0.00041155,30]
[393934247,1763107738438,635.75,0.00016373,2]
[393934294,1763107831660,-1328.67,0.00016444,2]
[393934301,1763107831713,-190822.5395402,0.00016444,2]
[393934303,1763107831723,-1000.0,0.00016444,2]
[393934304,1763107831732,-300.0,0.00016445,2]
[393934305,1763107831743,-195.0,0.00016445,2]
[393934307,1763107831752,-250.0,0.00016446,2]
[393934309,1763107831761,-377.58633016,0.00016448,2]
[393934311,1763107831771,-6212.47,0.00016459,2]
[393934313,1763107831780,-150.0,0.00016479,2]
[393934315,1763107831790,-2276.52,0.00016486,2]
[393934317,1763107831803,-772.61052027,0.000165,2]
[393934319,1763107831812,-200.0,0.00016554,2]
[393934321,1763107831822,-618.58,0.00016564,2]
[393934323,1763107831831,-150.99,0.00016585,2]
[393934325,1763107831841,-2905.86,0.00016585,2]
[393934328,1763107831851,-2460.88,0.00016585,2]
[393934330,1763107831860,-200.0,0.00016608,2]
[393934333,1763107831869,-9999.99,0.00016608,2]
[393934336,1763107831879,-200.0,0.00016775,2]
[393934339,1763107831888,-166.67,0.00016877,2]
[393934342,1763107831898,-200.0,0.00016942,2]
[393934345,1763107831907,-200.0,0.00016976,2]
[393934348,1763107831916,-150.0,0.00016976,2]
[393934351,1763107831926,-250.0,0.00017,2]
[393934354,1763107831935,-502.28991115,0.00017003,2]
[393934355,1763107831944,-643.14,0.0001701,2]
[393934357,1763107831954,-169.5435,0.00017025,2]
[393934359,1763107831964,-2460.88,0.00017033,2]
[393934360,1763107831973,-400.0,0.000171,6]
[393934361,1763107831982,-600.0,0.000171,6]
[393934362,1763107831993,-200.0,0.00017112,2]
[393934363,1763107832003,-200.0,0.00017146,2]
[393934364,1763107832012,-800.0,0.000172,6]
[393934365,1763107832021,-1200.0,0.000173,6]
[393934366,1763107832031,-200.0,0.00017317,2]
[393934367,1763107832040,-1700.0,0.000174,6]
[393934368,1763107832049,-168.0,0.00017419,2]
[393934369,1763107832058,-151.0,0.00017471,2]
[393934370,1763107832067,-151.0,0.00017472,2]
[393934372,1763107832076,-200.0,0.0001749,2]
[393934374,1763107832085,-2100.0,0.000175,6]
[393934376,1763107832095,-151.53,0.00017501,2]
[393934379,1763107832105,-1582.553,0.00017501,2]
[393934382,1763107832114,-168.0,0.00017501,2]
[393934384,1763107832124,-312.01127052,0.00017553,2]
[393934388,1763107832134,-191.02730848,0.00017553,2]
[393934390,1763107832143,-500.0,0.00017562,2]
[393934392,1763107832152,-360.30042686,0.00017569,2]
[393934394,1763107832162,-8327.91602247,0.000176,2]
[393934396,1763107832171,-400.0,0.000176,6]
[393934398,1763107832180,-2000.0,0.00017638,2]
[393934400,1763107832190,-200.0,0.00017665,2]
[393934402,1763107832199,-503.0,0.00017671,2]
[393934404,1763107832207,-400.0,0.000177,6]
[393934406,1763107832216,-162.96883442,0.000177,2]
[393934408,1763107832225,-162.96883442,0.00017729,2]
[393934410,1763107832235,-162.96883442,0.00017757,2]
[393934412,1763107832246,-168.0,0.00017775,2]
[393934414,1763107832255,-162.96883442,0.00017786,2]
[393934416,1763107832264,-322.89615723,0.00017791,2]
[393934418,1763107832273,-14728.75540658,0.00017793,2]
[393934420,1763107832282,-1000.0,0.000178,2]
[393934422,1763107832291,-400.0,0.000178,6]
[393934424,1763107832300,-322.89615718,0.00017803,2]
[393934426,1763107832312,-162.96883442,0.00017814,2]
[393934428,1763107832322,-322.89615718,0.00017815,2]
[393934430,1763107832331,-322.89615718,0.00017827,2]
[393934432,1763107832340,-322.89615718,0.00017839,2]
[393934434,1763107832349,-162.96883442,0.00017843,2]
[393934435,1763107832358,-322.89615718,0.00017852,2]
[393934437,1763107832367,-322.89615718,0.00017864,2]
[393934439,1763107832376,-162.96883442,0.00017871,2]
[393934441,1763107832387,-500.0,0.00017873,2]
[393934443,1763107832396,-608.37698903,0.00017873,2]
[393934446,1763107832405,-500.96758526,0.00017873,2]
[393934448,1763107832414,-501.21542673,0.00017873,2]
[393934450,1763107832423,-500.68799219,0.00017873,2]
[393934451,1763107832433,-500.0,0.00017873,2]
[393934453,1763107832442,-500.0,0.00017873,2]
[393934455,1763107832451,-500.0,0.00017873,2]
[393934457,1763107832460,-500.0,0.00017873,2]
[393934459,1763107832469,-500.0,0.00017873,2]
[393934461,1763107832478,-501.05164124,0.00017873,2]
[393934463,1763107832486,-532.79675222,0.00017873,2]
[393934466,1763107832499,-500.0,0.00017873,2]
[393934468,1763107832508,-501.20341473,0.00017873,2]
[393934470,1763107832517,-506.3715754,0.00017873,2]
[393934472,1763107832526,-431.70775828,0.00017873,2]
[393934474,1763107832536,-500.0,0.00017873,2]
[393934476,1763107832545,-497.32454221,0.00017873,2]
[393934478,1763107832555,-200.41214143,0.00017873,2]
[393934479,1763107832563,-14726.18158072,0.00017873,2]
[393934482,1763107832573,-322.89615718,0.00017876,2]
[393934484,1763107832582,-14726.18158066,0.00017876,2]
[393934485,1763107832591,-14726.18158066,0.00017879,2]
[393934487,1763107832600,-14726.18158066,0.00017882,2]
[393934490,1763107832609,-2500.0,0.00017882,3]
[393934493,1763107832629,-14726.18158066,0.00017885,2]
[393934495,1763107832638,-322.89615718,0.00017888,2]
[393934497,1763107832647,-14726.18158066,0.00017888,2]
[393934499,1763107832657,-14726.18158066,0.00017891,2]
[393934501,1763107832666,-2500.0,0.00017891,3]
[393934503,1763107832675,-14726.18158066,0.00017894,2]